[Event "Italian-ch Semifinal 2022"]
[Site "Acqui Terme"]
[Date "2022.06.17"]
[Round "7.3"]
[White "Caprino, Marco"]
[Black "Carnicelli, Valerio"]
[Result "0-1"]
[ECO "B23"]
[WhiteElo "2071"]
[BlackElo "2319"]
[Annotator "TA"]
[PlyCount "66"]
[EventDate "2022.06.15"]
[EventType "swiss"]
[EventCountry "ITA"]
[SourceTitle "playchess.com"]
[Source "ChessBase"]
[SourceQuality "1"]
[TimeControl "40/5400+30:1800+30"]

{[%evp 14,66,3,11,19,-21,-23,-30,-27,-26,-29,-29,-4,-57,-17,-20,-23,-25,-21,-50,-49,-94,-91,-152,-149,-134,-104,-181,-131,-152,-93,-586,-572,-610,-612,-603,-588,-624,-594,-864,-851,-945,-914,-1193,-1181,-1164,-1168,-1488,-1352,-29982,-29983,-29978,-29979,-29995,-29990]} 1. e4 {[%emt 0:00:30]} c5 {[%emt 0:03:07]} 2. Nc3 {[%emt 0:00:10]} Nc6 {[%emt 0:00:04]} 3. f4 {[%emt 0:00:06]} g6 {[%emt 0:00:05]} 4. Nf3 {[%emt 0:00:06]} Bg7 {[%emt 0:00:04]} 5. Bb5 {[%emt 0:00:05]} Nd4 {[%emt 0:00:04]} 6. O-O {[%emt 0:00:18]} Nxb5 {[%emt 0:00:07]} 7. Nxb5 {[%emt 0:00:06]} d5 {[%emt 0:00:07]} 8. e5 {[%emt 0:00:11]} d4 {[%emt 0:00:04] B23: Closed Sicilian: Lines without g3.} 9. d3 {[%emt 0:03:49]} Nh6 {[%emt 0:01:34] [#]} (9... a6 $5 10. Na3 Nh6 $11) 10. Qe2 $146 {[%emt 0:02:06]} ({Predecessor:} 10. c3 a6 11. Na3 dxc3 12. bxc3 O-O 13. Be3 Qc7 14. h3 Rd8 15. Qe2 b5 16. Rfd1 {½-½ (40) Oltean,C (1759)-Ochedzan,T (2098) Kouty nad Desnou 2019}) 10... O-O {[%emt 0:00:59] Black has an edge.} 11. c3 {[%emt 1:28:33]} a6 {[%emt 0:03:25]} 12. Na3 {[%emt 0:00:00]} f6 {[%emt 0:08:10]} 13. Bd2 {[%emt 0:00:00]} (13. cxd4 $11 cxd4 14. Bd2) 13... b5 {[%emt 0:04:08]} 14. cxd4 {[%emt 0:00:00]} cxd4 {[%emt 0:00:06]} 15. Nc2 {[%emt 0:00:00]} Nf5 {[%emt 0:01:27]} 16. Qf2 {[%emt 0:00:00]} fxe5 {[%emt 0:04:40]} 17. fxe5 {[%emt 0:00:00]} Bb7 {[%emt 0:02:20]} 18. Rae1 {[%emt 0:00:00]} (18. Qe2 $142) 18... Bxf3 $17 {[%emt 0:07:35]} 19. gxf3 {[%emt 0:00:00]} Rc8 {[%emt 0:00:56]} 20. Bc1 {[%emt 0:00:00]} (20. Bf4 $17 {was called for.}) 20... a5 {[%emt 0:11:20]} (20... e6 $19 21. b3 Rc3) 21. Re4 {[%emt 0:00:00]} e6 {[%emt 0:09:01]} ({Black should try} 21... Qd5 22. Bf4 Rfd8) 22. Nxd4 $2 {[%emt 0:00:00][%mdl 8192] [#] Loses the game.} (22. Bf4 $17 {is more resistant.}) 22... Rxc1 $1 $19 {[%emt 0:02:38][%mdl 512]} 23. Nxe6 {[%emt 0:00:00]} (23. Rxc1 Qg5+) 23... Rxf1+ {[%emt 0:00:09]} 24. Kxf1 {[%emt 0:00:00]} Qxd3+ {[%emt 0:00:12]} 25. Kg2 {[%emt 0:00:00]} Rc8 {[%emt 0:01:57] White must now prevent ...Rc2.} 26. Nc5 {[%emt 0:00:00]} Qd5 {[%emt 0:01:28]} 27. b4 {[%emt 0:00:00]} axb4 {[%emt 0:01:22]} 28. Na6 {[%emt 0:00:00]} Bxe5 {[%emt 0:09:37]} 29. Nxb4 {[%emt 0:00:00]} Qd6 {[%emt 0:00:38] Strongly threatening ...Rc1.} 30. Qe1 {[%emt 0:00:00]} Bxh2 {[%emt 0:04:30][%cal Oc8c1] [#] ( -> ...Rc1!)} 31. Re8+ {[%emt 0:00:00]} Rxe8 {[%emt 0:00:15] Black mates.} 32. Qxe8+ {[%emt 0:00:00]} Kg7 {[%emt 0:00:08]} 33. Qxb5 {[%emt 0:00:00]} Qg3+ {[%emt 0:01:03] Weighted Error Value: White=1.13/Black=0.10 (very precise)} 0-1

[Event "Italian-ch Semifinal 2022"]
[Site "Acqui Terme"]
[Date "2022.06.17"]
[Round "7.4"]
[White "Boraso, Alessio"]
[Black "Martorelli, Antonio"]
[Result "1-0"]
[ECO "B42"]
[WhiteElo "2287"]
[BlackElo "2141"]
[Annotator "NA RC"]
[PlyCount "35"]
[EventDate "2022.06.15"]
[EventType "swiss"]
[EventCountry "ITA"]
[SourceTitle "playchess.com"]
[Source "ChessBase"]
[SourceQuality "1"]
[TimeControl "40/5400+30:1800+30"]

1. e4 {[%emt 0:00:14]} c5 {[%emt 0:00:03]} 2. Nf3 {[%emt 0:00:16]} e6 {[%emt 0:00:08]} 3. d4 {[%emt 0:00:07]} cxd4 {[%emt 0:00:03]} 4. Nxd4 {[%emt 0:00:04]} a6 {[%emt 0:00:08]} 5. Bd3 {[%emt 0:00:06]} Qb6 {[%emt 0:01:01]} 6. Be3 {[%emt 0:01:01]} Nc6 {[%emt 0:04:41]} 7. Nxe6 {[%emt 0:22:27]} Qxb2 {[%emt 0:16:01]} 8. Nc7+ {[%emt 0:02:19]} Kd8 {[%emt 0:00:23]} 9. Nxa8 {[%emt 0:00:31]} Qxa1 {[%emt 0:00:06]} 10. Bb6+ {[%emt 0:01:43]} Ke7 {[%emt 0:00:31]} 11. O-O {[%emt 0:08:27]} Nf6 {[%emt 0:04:57]} 12. Qd2 {[%emt 0:04:42]} Qb2 {[%emt 0:06:28]} 13. Nc3 {[%emt 0:02:40]} g6 {[%emt 0:17:08]} 14. e5 {[%emt 0:07:10]} Nxe5 {[%emt 0:01:17]} 15. Bd4 {[%emt 0:01:58]} Nxd3 {[%emt 0:06:29]} 16. Qxd3 {[%emt 0:01:27]} Bg7 {[%emt 0:03:49]} 17. Bc5+ {[%emt 0:03:11]} Kd8 {[%emt 0:01:01]} 18. Qd6 {[%emt 0:00:56]} 1-0

[Event "Italian-ch Semifinal 2022"]
[Site "Acqui Terme"]
[Date "2022.06.17"]
[Round "7.5"]
[White "Pasini, Nicolo"]
[Black "Andreoni, Giuseppe"]
[Result "1-0"]
[ECO "B01"]
[WhiteElo "2227"]
[BlackElo "2170"]
[Annotator "NA RC"]
[PlyCount "81"]
[EventDate "2022.06.15"]
[EventType "swiss"]
[EventCountry "ITA"]
[SourceTitle "playchess.com"]
[Source "ChessBase"]
[SourceQuality "1"]
[TimeControl "40/5400+30:1800+30"]

1. e4 {[%emt 0:00:04]} d5 {[%emt 0:00:05]} 2. exd5 {[%emt 0:00:06]} Qxd5 {[%emt 0:00:05]} 3. Nf3 {[%emt 0:00:04]} Bg4 {[%emt 0:00:48]} 4. Be2 {[%emt 0:00:23]} Nc6 {[%emt 0:00:04]} 5. h3 {[%emt 0:00:04]} Bxf3 {[%emt 0:00:05]} 6. Bxf3 {[%emt 0:00:05]} Qe6+ {[%emt 0:00:04]} 7. Qe2 {[%emt 0:01:37]} Nd4 {[%emt 0:00:06]} 8. Qxe6 {[%emt 0:00:03]} Nxf3+ {[%emt 0:00:05]} 9. gxf3 {[%emt 0:00:04]} fxe6 {[%emt 0:00:05]} 10. d3 {[%emt 0:02:40]} g6 {[%emt 0:00:21]} 11. Bd2 {[%emt 0:01:13]} Bg7 {[%emt 0:05:16]} 12. Bc3 {[%emt 0:00:06]} Bxc3+ {[%emt 0:01:37]} 13. Nxc3 {[%emt 0:00:19]} Nh6 {[%emt 0:01:01]} 14. h4 {[%emt 0:05:56]} Nf5 {[%emt 0:03:31]} 15. O-O-O {[%emt 0:01:59]} O-O-O {[%emt 0:04:40]} 16. Rdg1 {[%emt 0:06:19]} Rhf8 {[%emt 0:24:06]} 17. h5 {[%emt 0:02:27]} gxh5 {[%emt 0:02:17]} 18. Rxh5 {[%emt 0:00:12]} h6 {[%emt 0:00:29]} 19. Rg6 {[%emt 0:05:04]} Kd7 {[%emt 0:22:59]} 20. Ne4 {[%emt 0:02:18]} b6 {[%emt 0:00:10]} 21. c3 {[%emt 0:01:36]} Rg8 {[%emt 0:00:57]} 22. Rg4 {[%emt 0:00:25]} Rdf8 {[%emt 0:03:23]} 23. Kd2 {[%emt 0:03:34]} Ke8 {[%emt 0:06:45]} 24. Ke2 {[%emt 0:03:40]} Kf7 {[%emt 0:01:17]} 25. Nd2 {[%emt 0:01:44]} Kf6 {[%emt 0:06:36]} 26. d4 {[%emt 0:02:17]} Rxg4 {[%emt 0:09:58]} 27. fxg4 {[%emt 0:00:15]} Kg6 {[%emt 0:00:05]} 28. Nc4 {[%emt 0:07:07]} Nd6 {[%emt 0:00:06]} 29. Ne5+ {[%emt 0:00:19]} Kg7 {[%emt 0:00:06]} 30. Ke3 {[%emt 0:02:10]} Ne8 {[%emt 0:01:11]} 31. g5 {[%emt 0:04:53]} hxg5 {[%emt 0:01:00]} 32. Rxg5+ {[%emt 0:00:07]} Kh7 {[%emt 0:01:17]} 33. Nc6 {[%emt 0:00:54]} Nd6 {[%emt 0:00:11]} 34. b3 {[%emt 0:01:41]} Rxf2 {[%emt 0:00:28]} 35. Kxf2 {[%emt 0:10:16]} Ne4+ {[%emt 0:00:10]} 36. Ke3 {[%emt 0:00:01]} Nxg5 {[%emt 0:00:07]} 37. Nxa7 {[%emt 0:00:26]} Nf7 {[%emt 0:01:08]} 38. Nb5 {[%emt 0:00:17]} c6 {[%emt 0:00:09]} 39. Na7 {[%emt 0:00:20]} Nd8 {[%emt 0:00:13]} 40. Nc8 {[%emt 0:00:00]} b5 {[%emt 0:00:00]} 41. Nxe7 {[%emt 0:02:17]} 1-0

[Event "Italian-ch Semifinal 2022"]
[Site "Acqui Terme"]
[Date "2022.06.17"]
[Round "7.6"]
[White "Lumachi, Gabriele"]
[Black "Misiano, Franco"]
[Result "1-0"]
[ECO "C00"]
[WhiteElo "2347"]
[BlackElo "2195"]
[Annotator "TA"]
[PlyCount "55"]
[EventDate "2022.06.15"]
[EventType "swiss"]
[EventCountry "ITA"]
[SourceTitle "playchess.com"]
[Source "ChessBase"]
[SourceQuality "1"]
[TimeControl "40/5400+30:1800+30"]

{[%evp 9,55,-7,-6,-4,-6,-7,-4,-22,-20,-25,0,-22,-10,-26,-10,-10,-14,-20,0,0,0,0,0,0,0,-4,-8,-45,-59,-55,-50,-50,82,-9,-21,-38,744,775,760,732,1133,1091,1391,1365,29995,29995,29995,29996]} 1. e4 {[%emt 0:10:34]} e6 {[%emt 0:00:42]} 2. Qe2 {[%emt 0:00:14]} c5 {[%emt 0:00:21]} 3. f4 {[%emt 0:00:11]} Nc6 {[%emt 0:00:12]} 4. c3 {[%emt 0:00:06]} Nf6 {[%emt 0:00:26]} 5. d3 {[%emt 0:01:23]} Be7 {[%emt 0:00:08]} 6. g3 {[%emt 0:00:11] C00: French: Unusual White 2nd moves.} d5 {[%emt 0:00:07]} 7. e5 {[%emt 0:00:06]} Nd7 {[%emt 0:00:05] [#]} 8. a4 $146 {[%emt 0:00:03] The position is equal.} ({Predecessor:} 8. Nf3 O-O 9. Bh3 b5 10. O-O d4 11. Bg2 Rb8 12. cxd4 Nxd4 13. Nxd4 cxd4 14. Nd2 {0-1 (39) Zivanovic,N (2076)-Stanojevic,I (2166) Kragujevac 2019}) 8... O-O {[%emt 0:01:01]} 9. Bg2 {[%emt 0:00:11]} a6 {[%emt 0:00:14]} 10. Nd2 {[%emt 0:01:41]} Rb8 {[%emt 0:00:16]} 11. Nh3 {[%emt 0:00:25]} b5 {[%emt 0:00:18]} 12. axb5 {[%emt 0:00:03]} axb5 {[%emt 0:00:04]} 13. O-O {[%emt 0:00:20]} Qb6 {[%emt 0:01:36]} 14. Nf3 {[%emt 0:02:07][%cal Of4f5]} d4 {[%emt 0:06:13]} 15. cxd4 {[%emt 0:09:30]} Nxd4 {[%emt 0:00:31]} 16. Nxd4 {[%emt 0:01:30]} cxd4 {[%emt 0:00:27]} 17. f5 {[%emt 0:05:29]} exf5 {[%emt 0:00:47]} 18. Nf4 {[%emt 0:09:42][%cal Bh3f4,Bf4d5,Bd5e7,Be7c6][%mdl 32]} Nc5 {[%emt 0:09:46] Prevents e6.} 19. Nd5 {[%emt 0:02:35][%csl LRb6,LRe7]} Qd8 {[%emt 0:02:24]} 20. Ra7 {[%emt 0:12:24]} Bg5 {[%emt 0:04:15]} (20... Bb7 $1 $15) 21. Qh5 {[%emt 0:24:16] White is much more active. The black rooks are badly placed.} (21. Bxg5 $16 Qxg5 22. Qc2) 21... Bxc1 $11 {[%emt 0:06:34]} 22. Rxc1 {[%emt 0:00:04]} Ne6 {[%emt 0:00:49][%mdl 8192] [#] A mistake that costs the game.} (22... Nxd3 $15 23. Ne7+ Kh8) 23. Ne7+ $18 {[%emt 0:02:35]} Kh8 {[%emt 0:00:17]} 24. Nc6 {[%emt 0:00:06]} ({And not} 24. Nxc8 g6 25. Qh6 Rxc8 $17) ({Not} 24. Rxc8 Rxc8 25. Nxc8 g6 $17) 24... Qb6 {[%emt 0:00:46]} 25. Rxf7 {[%emt 0:00:57]} Rg8 {[%emt 0:05:28]} 26. Ne7 {[%emt 0:03:30][%csl Gh5][%cal Re7g6] [#]} Nd8 {[%emt 0:01:04]} 27. Rc6 {[%emt 0:02:22]} Qxc6 {[%emt 0:03:44]} 28. Bxc6 {[%emt 0:00:13] Weighted Error Value: White=0.17 (very precise) /Black=0.66} 1-0

[Event "Italian-ch Semifinal 2022"]
[Site "Acqui Terme"]
[Date "2022.06.17"]
[Round "7.7"]
[White "Corvi, Marco"]
[Black "Bettalli, Francesco"]
[Result "1/2-1/2"]
[ECO "A35"]
[WhiteElo "2318"]
[BlackElo "2304"]
[Annotator "TA"]
[PlyCount "84"]
[EventDate "2022.06.15"]
[EventType "swiss"]
[EventCountry "ITA"]
[SourceTitle "playchess.com"]
[Source "ChessBase"]
[SourceQuality "1"]
[TimeControl "40/5400+30:1800+30"]

{[%evp 25,84,-20,0,-25,-22,-24,-22,-32,-29,-55,-23,-55,-55,-55,-55,-55,-55,-55,-55,-55,-55,-60,-60,-60,-59,-63,-54,-54,-52,-52,-52,-52,-52,-52,-52,-55,-55,-55,-55,-55,-54,-54,-54,-54,-37,-37,-27,-27,-27,-27,-27,-27,-22,-30,-22,-30,-30,-30,-30,-30,-30]} 1. c4 {[%emt 0:00:07]} c5 {[%emt 0:00:10]} 2. Nc3 {[%emt 0:00:07]} g6 {[%emt 0:00:08]} 3. Nf3 {[%emt 0:00:41]} Bg7 {[%emt 0:00:09]} 4. e3 {[%emt 0:00:13]} Nf6 {[%emt 0:00:07]} 5. Be2 {[%emt 0:00:21]} Nc6 {[%emt 0:00:42]} 6. O-O {[%emt 0:00:12]} O-O {[%emt 0:00:12]} 7. d4 {[%emt 0:00:31]} cxd4 {[%emt 0:00:05]} 8. Nxd4 {[%emt 0:00:35]} d5 {[%emt 0:00:05]} 9. cxd5 {[%emt 0:04:24]} Nxd5 {[%emt 0:00:10]} 10. Nxd5 {[%emt 0:02:26]} Qxd5 {[%emt 0:00:03]} 11. Bf3 {[%emt 0:00:50]} Qc5 {[%emt 0:00:05]} 12. Nxc6 {[%emt 0:01:37]} bxc6 {[%emt 0:00:16]} 13. Qa4 {[%emt 0:02:13]} Rb8 {[%emt 0:00:21]} 14. Qxc6 {[%emt 0:04:21] A35: Symmetrical English: 2 Nc3 Nc6 3 Nf3.} Qxc6 {[%emt 0:00:37]} 15. Bxc6 {[%emt 0:00:04]} Rd8 {[%emt 0:00:13]} 16. Ba4 {[%emt 0:06:46] [#] The position is equal.} Bf5 $146 {[%emt 0:04:25]} ({Predecessor:} 16... Ba6 17. Re1 Bxb2 18. Bxb2 Rxb2 19. Reb1 Rdd2 20. Rxb2 Rxb2 21. Bb3 Bb5 22. h3 a5 {0-1 (49) Wolf,M (2024)-Witte,M (2161) Berlin 2017}) 17. Rd1 {[%emt 0:07:11]} Rxd1+ {[%emt 0:00:08]} 18. Bxd1 {[%emt 0:00:02]} Rxb2 {[%emt 0:00:09]} 19. Bxb2 {[%emt 0:07:08]} Bxb2 $15 {[%emt 0:00:11][%mdl 4096] Endgame KRB-KB} 20. e4 $1 {[%emt 0:00:26]} Bxe4 {[%emt 0:00:42]} 21. Bf3 $1 {[%emt 0:00:20]} Bxa1 {[%emt 0:01:46]} ({Much less strong is} 21... Bxf3 22. Rb1 $14) 22. Bxe4 {[%emt 0:00:08] KB-KB} Kg7 {[%emt 0:01:03]} 23. f4 {[%emt 0:01:41]} Bd4+ {[%emt 0:01:41]} 24. Kf1 {[%emt 0:00:16]} h6 {[%emt 0:00:29]} 25. Ke2 {[%emt 0:00:31]} Kf6 {[%emt 0:00:48]} 26. Kf3 {[%emt 0:01:22]} Bg1 {[%emt 0:00:45]} 27. h3 {[%emt 0:00:46]} e6 {[%emt 0:00:40]} 28. g4 {[%emt 0:00:43]} Bc5 {[%emt 0:00:20]} 29. Bc6 {[%emt 0:00:15]} g5 {[%emt 0:00:09]} 30. Be4 {[%emt 0:00:23]} gxf4 {[%emt 0:00:17]} 31. Kxf4 {[%emt 0:00:03]} Bd6+ {[%emt 0:00:07]} 32. Kf3 {[%emt 0:00:22]} a5 {[%emt 0:01:35]} 33. Bc6 {[%emt 0:00:20]} Kg5 {[%emt 0:00:54]} 34. Be8 {[%emt 0:01:06]} f5 {[%emt 0:00:07]} 35. gxf5 {[%emt 0:00:14]} Kxf5 {[%emt 0:00:06]} 36. Bd7 {[%emt 0:00:23]} Ke5 {[%emt 0:00:02]} 37. Be8 {[%emt 0:00:30]} Kd4 {[%emt 0:00:12]} 38. a4 {[%emt 0:00:32]} e5 {[%emt 0:00:04]} 39. Bc6 {[%emt 0:00:08]} Kc5 {[%emt 0:00:04]} 40. Be8 {[%emt 0:00:00]} Kd5 {[%emt 0:00:00] Black has an edge.} 41. Bg6 {[%emt 0:00:27]} Kd4 {[%emt 0:00:15]} 42. Bf5 {[%emt 0:00:17]} Be7 {[%emt 0:00:34] Weighted Error Value: White=0.03 (flawless) /Black=0.02 (flawless)} 1/2-1/2

[Event "Italian-ch Semifinal 2022"]
[Site "Acqui Terme"]
[Date "2022.06.17"]
[Round "7.8"]
[White "Paduano, Claudio"]
[Black "Palozza, Christian"]
[Result "0-1"]
[ECO "D56"]
[WhiteElo "2138"]
[BlackElo "2284"]
[Annotator "NA RC"]
[PlyCount "80"]
[EventDate "2022.06.15"]
[EventType "swiss"]
[EventCountry "ITA"]
[SourceTitle "playchess.com"]
[Source "ChessBase"]
[SourceQuality "1"]
[TimeControl "40/5400+30:1800+30"]

1. d4 {[%emt 0:04:31]} Nf6 {[%emt 0:00:05]} 2. c4 {[%emt 0:00:10]} e6 {[%emt 0:00:04]} 3. Nf3 {[%emt 0:00:14]} d5 {[%emt 0:00:06]} 4. Nc3 {[%emt 0:00:15]} Be7 {[%emt 0:00:08]} 5. Bg5 {[%emt 0:00:34]} O-O {[%emt 0:00:13]} 6. e3 {[%emt 0:00:46]} h6 {[%emt 0:00:06]} 7. Bh4 {[%emt 0:00:44]} Ne4 {[%emt 0:00:26]} 8. Bxe7 {[%emt 0:01:24]} Qxe7 {[%emt 0:00:06]} 9. Rc1 {[%emt 0:07:49]} c6 {[%emt 0:01:58]} 10. Bd3 {[%emt 0:13:00]} Nxc3 {[%emt 0:00:30]} 11. Rxc3 {[%emt 0:01:29]} Nd7 {[%emt 0:00:06]} 12. cxd5 {[%emt 0:24:51]} exd5 {[%emt 0:00:20]} 13. O-O {[%emt 0:00:58]} Nf6 {[%emt 0:00:05]} 14. Ne5 {[%emt 0:13:48]} Ne4 {[%emt 0:00:39]} 15. Bxe4 {[%emt 0:10:10]} dxe4 {[%emt 0:00:29]} 16. f3 {[%emt 0:03:48]} exf3 {[%emt 0:14:36]} 17. Qxf3 {[%emt 0:06:23]} Be6 {[%emt 0:00:15]} 18. a3 {[%emt 0:03:03]} Qd6 {[%emt 0:03:55]} 19. Rc2 {[%emt 0:04:01]} f6 {[%emt 0:03:07]} 20. Ng6 {[%emt 0:00:51]} Rfe8 {[%emt 0:01:46]} 21. Nf4 {[%emt 0:01:30]} Bf7 {[%emt 0:00:22]} 22. Re1 {[%emt 0:00:40]} a5 {[%emt 0:05:12]} 23. Rd2 {[%emt 0:00:28]} Ra6 {[%emt 0:00:49]} 24. e4 {[%emt 0:00:29]} Rb6 {[%emt 0:01:01]} 25. Qf2 {[%emt 0:00:27]} Rb5 {[%emt 0:02:27]} 26. a4 {[%emt 0:00:35]} Rg5 {[%emt 0:38:58]} 27. h4 {[%emt 0:00:05]} Rg4 {[%emt 0:00:04]} 28. e5 {[%emt 0:00:20]} Qc7 {[%emt 0:01:30]} 29. Qf3 {[%emt 0:00:58]} h5 {[%emt 0:01:52]} 30. Rde2 {[%emt 0:00:37]} fxe5 {[%emt 0:01:58]} 31. Rxe5 {[%emt 0:00:31]} Rxe5 {[%emt 0:00:50]} 32. Rxe5 {[%emt 0:00:26]} Qd8 {[%emt 0:04:53]} 33. Qe3 {[%emt 0:00:34]} Qxh4 {[%emt 0:00:02]} 34. Ne2 {[%emt 0:00:30]} Qe1+ {[%emt 0:00:30]} 35. Kh2 {[%emt 0:00:10]} Rh4+ {[%emt 0:00:09]} 36. Qh3 {[%emt 0:00:18]} Rxh3+ {[%emt 0:00:06]} 37. Kxh3 {[%emt 0:00:12]} Qb4 {[%emt 0:00:21]} 38. Kh4 {[%emt 0:01:18]} Qxb2 {[%emt 0:00:23]} 39. g3 {[%emt 0:00:32]} Qa3 {[%emt 0:00:28]} 40. Nf4 {[%emt 0:00:00]} Qxa4 {[%emt 0:00:00]} 0-1

[Event "Italian-ch Semifinal 2022"]
[Site "Acqui Terme"]
[Date "2022.06.17"]
[Round "7.9"]
[White "Tripodi, Enzo"]
[Black "Cina`, Vittorio"]
[Result "0-1"]
[ECO "C17"]
[WhiteElo "2170"]
[BlackElo "2027"]
[Annotator "NA RC"]
[PlyCount "76"]
[EventDate "2022.06.15"]
[EventType "swiss"]
[EventCountry "ITA"]
[SourceTitle "playchess.com"]
[Source "ChessBase"]
[SourceQuality "1"]
[TimeControl "40/5400+30:1800+30"]

1. e4 {[%emt 0:03:31]} e6 {[%emt 0:00:06]} 2. d4 {[%emt 0:00:58]} d5 {[%emt 0:00:07]} 3. Nc3 {[%emt 0:00:31]} Bb4 {[%emt 0:00:09]} 4. e5 {[%emt 0:00:06]} Ne7 {[%emt 0:00:07]} 5. Qg4 {[%emt 0:00:31]} c5 {[%emt 0:05:09]} 6. a3 {[%emt 0:00:37]} Qa5 {[%emt 0:06:13]} 7. Bb5+ {[%emt 0:18:56]} Kf8 {[%emt 0:13:43]} 8. axb4 {[%emt 0:00:47]} Qxa1 {[%emt 0:00:23]} 9. Nge2 {[%emt 0:00:08]} cxb4 {[%emt 0:06:14]} 10. O-O {[%emt 0:06:51]} Qa5 {[%emt 0:17:53]} 11. Bg5 {[%emt 0:03:01]} Nf5 {[%emt 0:03:27]} 12. Nxd5 {[%emt 0:01:41]} h5 {[%emt 0:12:05]} 13. Qf3 {[%emt 0:12:39]} Qxb5 {[%emt 0:10:55]} 14. Nc7 {[%emt 0:00:25]} Qc6 {[%emt 0:00:16]} 15. Nxa8 {[%emt 0:02:19]} Qxf3 {[%emt 0:02:46]} 16. gxf3 {[%emt 0:02:02]} Bd7 {[%emt 0:00:19]} 17. Nc7 {[%emt 0:04:47]} Bc6 {[%emt 0:04:51]} 18. d5 {[%emt 0:00:24]} exd5 {[%emt 0:00:35]} 19. Nf4 {[%emt 0:02:18]} Nd7 {[%emt 0:03:37]} 20. Re1 {[%emt 0:03:53]} Nd4 {[%emt 0:01:17]} 21. Kg2 {[%emt 0:00:03]} Nc5 {[%emt 0:00:33]} 22. Nfxd5 {[%emt 0:03:29]} f6 {[%emt 0:03:00]} 23. Bd2 {[%emt 0:12:09]} Nxc2 {[%emt 0:02:35]} 24. Rd1 {[%emt 0:02:44]} b3 {[%emt 0:00:55]} 25. Bc3 {[%emt 0:00:24]} fxe5 {[%emt 0:00:52]} 26. Nb4 {[%emt 0:02:05]} Rh6 {[%emt 0:00:36]} 27. Nxc6 {[%emt 0:01:35]} Rxc6 {[%emt 0:00:15]} 28. Bxe5 {[%emt 0:00:28]} Nd3 {[%emt 0:00:51]} 29. Bc3 {[%emt 0:03:13]} Nf4+ {[%emt 0:00:49]} 30. Kf1 {[%emt 0:01:30]} Rxc7 {[%emt 0:00:16]} 31. Rd6 {[%emt 0:00:58]} Rxc3 {[%emt 0:00:50]} 32. bxc3 {[%emt 0:00:12]} b2 {[%emt 0:00:10]} 33. Rd1 {[%emt 0:00:03]} Nd3 {[%emt 0:00:09]} 34. Ke2 {[%emt 0:01:07]} Nc1+ {[%emt 0:00:06]} 35. Kd2 {[%emt 0:00:04]} b1=Q {[%emt 0:00:09]} 36. Rxc1 {[%emt 0:00:04]} Qb3 {[%emt 0:00:31]} 37. Rxc2 {[%emt 0:00:04]} a5 {[%emt 0:00:05]} 38. Kd3 {[%emt 0:01:28]} a4 {[%emt 0:00:10]} 0-1